bitfinex/quotes_BTCUSD_20241120
["timestamp","ask_amount","ask_price","bid_price","bid_amount"]
[1732125887117,0.09522458,93966.0,93956.0,0.15381512]
[1732125887774,0.09522458,93966.0,93959.0,0.002]
[1732125888002,0.09522458,93966.0,93960.0,0.10711512]
[1732125890367,0.09522458,93966.0,93956.0,0.0467]
[1732125890583,0.09522458,93966.0,93957.0,0.10711512]
[1732125890840,0.09522458,93966.0,93958.0,0.01538151]
[1732125891081,0.09522458,93966.0,93965.0,0.002]
[1732125891317,0.09522458,93966.0,93965.0,0.10711512]
[1732125891529,0.09522458,93966.0,93965.0,0.18741512]
[1732125892258,0.09522458,93966.0,93965.0,0.18941512]
[1732125892469,0.09522458,93966.0,93965.0,0.30835663]
[1732125894519,0.09522458,93966.0,93965.0,0.28741512]
[1732125895703,0.09607623,93968.0,93966.0,0.1]
[1732125895704,0.0008542,93968.0,93966.0,0.1]
[1732125895937,2e-07,93968.0,93967.0,0.20711512]
[1732125896145,2e-07,93968.0,93967.0,0.20911512]
[1732125897102,2e-07,93968.0,93967.0,0.26751512]
[1732125897312,0.004254,93985.0,93978.0,0.002]
[1732125897529,1e-06,93979.0,93978.0,0.21911512]
[1732125897743,1e-06,93979.0,93978.0,0.26811512]
[1732125898401,1e-06,93979.0,93978.0,0.35491512]
[1732125898619,0.0017106,93987.0,93979.0,0.1]
[1732125898853,0.0017106,93987.0,93986.0,0.21911512]
[1732125899106,4e-07,93994.0,93993.0,0.012]
[1732125899338,4e-07,93994.0,93993.0,0.11911512]
[1732125899571,4e-07,93994.0,93993.0,0.21711512]
[1732125899785,4e-07,93994.0,93993.0,0.23017896]
[1732125900092,4e-07,93994.0,93993.0,0.25922417]
[1732125900308,4e-07,93994.0,93993.0,0.24922417]
[1732125900521,4e-07,93994.0,93993.0,0.23722417]
[1732125900736,4e-07,93994.0,93993.0,0.20711512]
[1732125900949,4e-07,93994.0,93993.0,0.20911512]
[1732125901592,4e-07,93994.0,93993.0,0.21911512]
[1732125901831,0.00117823,93999.0,93998.0,0.002]
[1732125902042,0.00117823,93999.0,93998.0,0.10911512]
[1732125902254,0.00117823,93999.0,93998.0,0.20911512]
[1732125902464,0.00117823,93999.0,93998.0,0.28521512]
[1732125902675,0.00117823,93999.0,93998.0,0.31573663]
[1732125903324,0.00117823,93999.0,93998.0,0.31373663]
[1732125903547,0.00117823,93999.0,93998.0,0.31573663]
[1732125904027,0.00117823,93999.0,93998.0,0.32573663]
[1732125904275,0.00117823,93999.0,93998.0,0.33573663]
[1732125904957,0.00117823,93999.0,93998.0,0.38453663]
[1732125906365,0.00088803,94003.0,94002.0,0.022]
[1732125906579,0.00088803,94003.0,94002.0,0.25317877]
[1732125906820,0.00088803,94003.0,94002.0,0.25211512]
[1732125910895,0.0004,94019.0,94003.0,0.135]
[1732125911136,0.0004,94019.0,94003.0,0.29867273]
[1732125911342,0.0004,94019.0,94003.0,0.30067273]
[1732125912730,0.0004,94019.0,94003.0,0.27767273]
[1732125915138,0.0004,94019.0,94003.0,0.27567273]
[1732125915495,0.0004,94019.0,94003.0,0.27767273]
[1732125915816,0.0004,94019.0,94003.0,0.26567273]
[1732125916048,0.0004,94019.0,94003.0,0.27567273]
[1732125916273,2e-07,94005.0,94004.0,0.012]
[1732125916484,2e-07,94005.0,94004.0,0.25909761]
[1732125916720,0.0004,94019.0,94018.0,0.012]
[1732125916721,2e-07,94019.0,94018.0,0.012]
[1732125916957,0.0151187,94030.0,94018.0,0.012]
[1732125916958,0.01070978,94030.0,94029.0,0.048]
[1732125917216,0.0004,94059.0,94029.0,0.048]
[1732125917217,0.0207869,94046.0,94032.0,0.045]
[1732125917426,0.0004,94059.0,94032.0,0.15211512]
[1732125917655,0.0004,94059.0,94032.0,0.25317835]
[1732125917883,0.0004,94059.0,94038.0,0.022]
[1732125918155,0.0004,94059.0,94038.0,0.21911512]
[1732125918375,0.0004,94059.0,94038.0,0.20711512]
[1732125918627,0.0004,94059.0,94038.0,0.10711512]
[1732125919090,0.0004,94059.0,94038.0,0.11782663]
[1732125919359,0.03153076,94058.0,94017.0,0.002]
[1732125919574,0.5004,94059.0,94017.0,0.002]
[1732125919575,0.03153076,94057.0,94018.0,0.10711512]
[1732125919789,0.0004,94059.0,94018.0,0.10711512]
[1732125919790,0.02118063,94039.0,94018.0,0.10711512]
[1732125920004,0.02118063,94039.0,94019.0,0.01854897]
[1732125920216,0.0004,94039.0,94024.0,0.002]
[1732125920424,0.0004,94039.0,94019.0,0.01854897]
[1732125920425,0.0004,94039.0,94025.0,0.10711512]
[1732125920656,0.0004,94039.0,94021.0,0.1]
[1732125920918,0.0004,94039.0,94023.0,0.1]
[1732125921142,0.0004,94039.0,94023.0,0.02071151]
[1732125921143,0.021662,94039.0,94023.0,0.02071151]
[1732125921365,0.021662,94039.0,94003.0,0.003539]
[1732125921366,0.10004031,94038.0,94006.0,0.002]
[1732125921578,0.10004031,94038.0,94003.0,0.003539]
[1732125921579,0.01974031,94037.0,94007.0,0.10711512]
[1732125921790,0.01974031,94036.0,94008.0,0.01126541]
[1732125922024,0.0803,94038.0,94009.0,0.10711512]
[1732125922310,0.05133144,94037.0,94009.0,0.10711512]
[1732125922535,0.05133144,94036.0,94009.0,0.10711512]
[1732125922745,0.0803,94038.0,94010.0,0.01126541]
[1732125922746,0.05133144,94035.0,94010.0,0.01126541]
[1732125922962,0.01974286,94034.0,94010.0,0.11838053]
[1732125923194,0.0803,94038.0,94010.0,0.11838053]
[1732125923195,0.01974286,94033.0,94010.0,0.10711512]
[1732125923410,0.01474286,94033.0,94011.0,0.01091151]
[1732125923656,0.01474286,94032.0,94004.0,0.10711512]
[1732125923882,0.18741512,94038.0,94005.0,0.01126541]
[1732125924115,0.18741512,94038.0,94006.0,0.10711512]
[1732125924361,0.0803,94038.0,94006.0,0.10911512]
[1732125924572,0.0803,94038.0,94007.0,0.1]
[1732125924787,0.0803,94038.0,94008.0,0.10711512]
[1732125925034,0.0803,94038.0,94009.0,0.02126541]
[1732125925290,0.18741512,94038.0,94009.0,0.12838053]
[1732125925499,0.18741512,94038.0,94003.0,0.003539]
[1732125925500,0.023,94033.0,94003.0,0.003539]
[1732125925760,0.106352,94027.0,94003.0,0.003539]
[1732125926006,0.13877651,94026.0,94003.0,0.003539]
[1732125926219,0.106359,94021.0,94003.0,0.003539]
[1732125926446,0.03166139,94020.0,94003.0,0.003539]
[1732125926674,0.03166139,94019.0,94003.0,0.003539]
[1732125926878,0.10711512,94024.0,94003.0,0.003539]
[1732125926879,0.03166139,94018.0,94003.0,0.003539]
[1732125927105,0.03166139,94017.0,94003.0,0.003539]
[1732125927321,0.10711512,94024.0,94003.0,0.003539]
[1732125927322,0.03166139,94016.0,94003.0,0.003539]
[1732125927585,0.10711512,94024.0,94003.0,0.003539]
[1732125927833,0.03169369,94023.0,94003.0,0.003539]
[1732125928041,0.03169369,94022.0,94010.0,0.002]
[1732125928260,0.03169369,94022.0,94003.0,0.003539]
[1732125928261,0.03169369,94021.0,94011.0,0.11802663]
[1732125928493,0.27977823,94035.0,94011.0,0.11802663]
[1732125928494,0.1381,94035.0,94011.0,0.10711512]
[1732125928708,0.1381,94035.0,94012.0,0.01091151]
[1732125928709,0.03170072,94034.0,94012.0,0.01091151]
[1732125928946,0.03170072,94033.0,94013.0,0.10711512]
[1732125929195,0.03170072,94032.0,94013.0,0.10711512]
[1732125929410,0.03170072,94031.0,94014.0,0.01091151]
[1732125929665,0.03170072,94030.0,94014.0,0.11802663]
[1732125929879,0.03170072,94029.0,94014.0,0.10711512]
[1732125930160,0.03170072,94028.0,94003.0,0.003539]
[1732125930366,0.09445215,94030.0,94003.0,0.003539]
[1732125930367,0.03170072,94027.0,94004.0,0.10711512]
[1732125930604,0.20980551,94035.0,94004.0,0.10711512]
[1732125930605,0.03170072,94026.0,94005.0,0.01580541]
[1732125930879,0.03170072,94025.0,94006.0,0.10711512]
[1732125931095,0.03170072,94024.0,94006.0,0.10711512]
[1732125931332,0.03170072,94023.0,94007.0,0.01106541]
[1732125931571,0.03170072,94022.0,94008.0,0.10711512]
[1732125931804,0.03170072,94021.0,94008.0,0.10711512]
[1732125932055,0.09465412,94033.0,94009.0,0.01980541]
[1732125932298,0.12636242,94032.0,94010.0,0.10711512]
[1732125932535,0.0317083,94031.0,94010.0,0.10988343]
[1732125932815,0.12636242,94030.0,94010.0,0.00276831]
[1732125933059,0.14198119,94032.0,94010.0,0.00276831]
[1732125933060,0.09465412,94027.0,94010.0,0.00276831]
[1732125933287,0.09465412,94024.0,94010.0,0.10711512]
[1732125933497,0.0317083,94023.0,94011.0,0.01071151]
[1732125933724,0.0317083,94022.0,94012.0,0.01178266]
[1732125933941,0.0317083,94021.0,94012.0,0.01178266]
[1732125934159,0.0317083,94020.0,94013.0,0.01492592]
[1732125934382,0.09465412,94024.0,94013.0,0.10345506]
[1732125934613,0.14198119,94026.0,94013.0,0.10345506]
[1732125934614,0.09465412,94026.0,94013.0,0.10345506]
[1732125934817,0.18930825,94031.0,94014.0,0.01234551]
[1732125934818,0.09465412,94029.0,94014.0,0.01234551]
[1732125935044,0.0226804,94039.0,94014.0,0.01234551]
[1732125935045,0.03171,94023.0,94015.0,0.10711512]
[1732125935261,0.03171,94023.0,94022.0,0.002]
[1732125935485,0.03171,94023.0,94022.0,0.24982663]
[1732125935696,0.03171,94023.0,94022.0,0.23891512]
[1732125935949,0.03171,94023.0,94022.0,0.24156103]
[1732125936189,0.03171,94023.0,94022.0,0.34156103]
[1732125936397,0.03171,94023.0,94022.0,0.36156103]
[1732125936631,0.03171,94023.0,94022.0,0.39771713]
[1732125938078,0.03171,94023.0,94022.0,0.10976103]
[1732125938286,0.03171,94023.0,94022.0,0.21976103]
[1732125938926,0.03171,94023.0,94022.0,0.26966103]
[1732125939176,0.0008555,94033.0,94023.0,0.1]
[1732125939426,0.0008555,94033.0,94032.0,0.22911512]
[1732125940370,0.0008555,94033.0,94032.0,0.25463355]
[1732125940617,0.0008555,94033.0,94032.0,0.38113355]
[1732125944528,0.0008555,94033.0,94032.0,0.34613355]
[1732125944773,0.0008555,94033.0,94032.0,0.11163355]
[1732125945260,0.0008555,94033.0,94032.0,0.10963355]
[1732125946200,0.0008555,94033.0,94032.0,0.00251843]
[1732125946477,0.1879005,94033.0,94032.0,0.00251843]
[1732125946712,0.1879005,94033.0,93997.0,0.01]
[1732125946713,0.0815555,94033.0,94006.0,0.003711]
[1732125946932,0.09499747,94029.0,94007.0,0.10711512]
[1732125947178,0.20904629,94033.0,94009.0,0.002]
[1732125947179,0.09499747,94028.0,94009.0,0.002]
[1732125947432,0.09499747,94028.0,94010.0,0.10711512]
[1732125947678,0.09499747,94026.0,94010.0,0.1095513]
[1732125947915,0.09499747,94028.0,94010.0,0.1095513]
[1732125948207,0.09499747,94025.0,94011.0,0.01132623]
[1732125948446,0.09499747,94026.0,94011.0,0.01132623]
[1732125948689,0.09499747,94026.0,94006.0,0.001711]
[1732125948954,0.09501894,94021.0,94006.0,0.001711]
[1732125949182,0.09501894,94018.0,94006.0,0.001711]
[1732125949427,0.09501894,94020.0,94006.0,0.001711]
[1732125949657,0.14252841,94022.0,94006.0,0.001711]
[1732125949658,0.09501894,94022.0,94006.0,0.001711]
[1732125950100,0.09501894,94021.0,94006.0,0.001711]
[1732125950322,0.19003789,94026.0,94007.0,0.10911512]
[1732125950323,0.09501894,94024.0,94007.0,0.10911512]
[1732125950567,0.09501894,94024.0,94008.0,0.01143651]
[1732125950809,0.09501894,94028.0,94009.0,0.10711512]
[1732125951052,0.09501894,94027.0,94010.0,0.01458016]
[1732125951288,0.09501894,94030.0,94015.0,0.002]
[1732125951563,0.02200029,94033.0,94016.0,0.10711512]
[1732125951773,0.02200029,94033.0,94017.0,0.01091151]
[1732125952001,0.02200029,94033.0,94018.0,0.10711512]
[1732125954838,0.02200029,94033.0,94003.0,0.013539]
[1732125954839,0.02200029,94033.0,94003.0,0.003539]
[1732125955071,0.01978185,94032.0,94008.0,0.1]
[1732125955304,0.02200029,94033.0,94008.0,0.1]
[1732125955305,0.02200029,94033.0,94009.0,0.10711512]
[1732125955517,0.02200029,94033.0,94009.0,0.12955163]
[1732125955764,0.02200029,94033.0,94010.0,0.00255441]
[1732125955996,0.106355,94025.0,94010.0,0.00255441]
[1732125956241,0.09500457,94026.0,94003.0,0.003539]
[1732125956485,0.10636,94020.0,94003.0,0.003539]
[1732125956751,0.09500457,94023.0,94003.0,0.003539]
[1732125956959,0.12689697,94024.0,94003.0,0.003539]
[1732125957188,0.10711512,94024.0,94003.0,0.003539]
[1732125957416,0.106358,94022.0,94003.0,0.003539]
[1732125957645,0.01978185,94025.0,94007.0,0.10711512]
[1732125957879,0.09499485,94029.0,94008.0,0.01143651]
[1732125958090,0.09499485,94027.0,94008.0,0.01143651]
[1732125958353,0.106358,94022.0,94003.0,0.003539]
[1732125958563,0.212712,94024.0,94003.0,0.003539]
[1732125958803,0.212716,94022.0,94003.0,0.003539]
[1732125959059,0.1147767,94024.0,94003.0,0.003539]
[1732125959269,0.09499485,94026.0,94003.0,0.003539]
[1732125959496,0.09499485,94024.0,94003.0,0.003539]
[1732125960138,0.1147767,94024.0,94003.0,0.003539]
[1732125960351,0.01978185,94023.0,94003.0,0.003539]
[1732125960802,0.23249989,94022.0,94003.0,0.003539]
[1732125960805,0.11477874,94022.0,94003.0,0.003539]
[1732125961035,0.106366,94015.0,94003.0,0.003539]
[1732125961254,0.09498033,94017.0,94003.0,0.003539]
[1732125961255,0.212734,94014.0,94003.0,0.003539]
[1732125961471,0.106375,94007.0,94003.0,0.003539]
[1732125961688,0.106378,94004.0,94003.0,0.003539]
[1732125962187,0.09498033,94009.0,94003.0,0.003539]
[1732125962429,0.14247049,94011.0,94003.0,0.003539]
[1732125962430,0.01978389,94008.0,94003.0,0.003539]
[1732125962671,0.03165422,94010.0,94003.0,0.003539]
[1732125962886,0.01977043,94009.0,94003.0,0.003539]
[1732125963102,0.01977043,94008.0,94003.0,0.003539]
[1732125963557,0.01976831,94007.0,94003.0,0.003539]
[1732125963979,0.01976831,94006.0,94003.0,0.003539]
[1732125964189,0.01976831,94005.0,94003.0,0.003539]
[1732125964493,0.02108561,94015.0,94003.0,0.003539]
[1732125964494,0.01976831,94012.0,94003.0,0.003539]
[1732125964667,0.01976831,94011.0,94003.0,0.003539]
[1732125964877,0.23307032,94017.0,94003.0,0.003539]
[1732125964878,0.01976831,94010.0,94003.0,0.003539]
[1732125965096,0.04131033,94016.0,94003.0,0.003539]
[1732125965304,0.01976831,94015.0,94003.0,0.003539]
[1732125965545,0.1381,94017.0,94003.0,0.11065412]
[1732125965783,0.15875233,94017.0,94005.0,0.1]
[1732125966020,0.15875233,94017.0,94006.0,0.10711512]
[1732125966230,0.15875233,94017.0,94006.0,0.10973719]
[1732125966444,0.02065233,94017.0,94006.0,0.10973719]
[1732125966648,0.02065233,94017.0,94007.0,0.02873216]
[1732125966859,0.09494367,94038.0,94007.0,0.02873216]
[1732125966860,0.01976831,94032.0,94008.0,0.10711512]
[1732125967112,0.01976831,94031.0,94009.0,0.1]
[1732125967365,0.09619737,94039.0,94010.0,0.13684715]
[1732125967366,0.01976831,94032.0,94010.0,0.13684715]
[1732125967572,0.01976831,94031.0,94010.0,0.10974369]
[1732125967801,0.0008555,94033.0,94010.0,0.1394765]
[1732125968020,0.0008555,94033.0,94010.0,0.10974369]
[1732125968534,0.01976831,94032.0,94010.0,0.10974369]
[1732125968766,0.01976831,94031.0,94010.0,0.10974369]
[1732125969000,0.0008555,94033.0,94010.0,0.10974369]
[1732125969216,0.0008555,94033.0,94011.0,0.02385891]
[1732125969460,0.01975273,94032.0,94012.0,0.10711512]
[1732125969690,0.01975273,94031.0,94011.0,0.02648813]
[1732125969958,0.01975273,94030.0,94012.0,0.00262857]
[1732125970200,0.01975273,94029.0,94013.0,0.10711512]
[1732125970413,0.0008555,94033.0,94013.0,0.10711512]
[1732125970414,0.01975273,94028.0,94013.0,0.10711512]
[1732125970648,0.0008555,94033.0,94014.0,0.02295021]
[1732125970882,0.01976323,94032.0,94015.0,0.10711512]
[1732125971096,0.01976323,94031.0,94016.0,0.03546913]
[1732125971307,0.0008555,94033.0,94019.0,0.02]
[1732125971537,0.0008555,94033.0,94021.0,0.1]
[1732125971777,0.0008555,94033.0,94022.0,0.10711512]
[1732125971984,0.0008555,94033.0,94022.0,0.10971787]
[1732125972264,0.0008555,94033.0,94026.0,0.01]
[1732125972443,0.0008555,94033.0,94032.0,0.01]
[1732125972657,0.0008555,94033.0,94032.0,0.22711512]
[1732125972898,0.0008555,94033.0,94032.0,0.30921512]
[1732125973148,0.00043983,94033.0,94032.0,0.31179486]
[1732125973391,0.00043983,94033.0,94032.0,0.34297435]
[1732125973631,0.00043983,94033.0,94032.0,0.38817435]
[1732125974134,0.00043983,94033.0,94032.0,0.34699486]
[1732125974360,0.00043983,94033.0,94032.0,0.22169486]
[1732125974801,0.00043983,94033.0,94032.0,0.21969486]
[1732125975053,0.00043983,94033.0,94032.0,0.00257974]
[1732125975484,0.02023761,94033.0,94032.0,0.00257974]
[1732125975704,0.12745222,94033.0,94007.0,0.0818]
[1732125975938,0.14724954,94033.0,94008.0,0.00970504]
[1732125976197,0.14724954,94033.0,94006.0,0.0017114]
[1732125976198,0.05147637,94032.0,94006.0,0.0017114]
[1732125976433,0.15963143,94031.0,94006.0,0.0017114]
[1732125976664,0.106351,94028.0,94006.0,0.0017114]
[1732125976895,0.106356,94024.0,94006.0,0.0017114]
[1732125977131,0.0647423,94023.0,94006.0,0.0017114]
[1732125977361,0.1423337,94029.0,94006.0,0.10882652]
[1732125977362,0.05147637,94022.0,94006.0,0.10882652]
[1732125977585,0.05147637,94021.0,94007.0,0.11835167]
[1732125977833,0.01980495,94020.0,94010.0,0.01]
[1732125978068,0.15883996,94031.0,94011.0,0.14436143]
[1732125978283,0.01980376,94030.0,94011.0,0.14436143]
[1732125978501,0.15883996,94031.0,94011.0,0.14436143]
[1732125978502,0.01980376,94029.0,94012.0,0.1]
[1732125978718,0.05148756,94029.0,94013.0,0.10711512]
[1732125978943,0.05148756,94028.0,94013.0,0.10711512]
[1732125979156,0.05148552,94028.0,94014.0,0.04007226]
[1732125979374,0.05148377,94027.0,94015.0,0.10711512]
[1732125979603,0.05148377,94027.0,94010.0,0.01]
[1732125979604,0.01980212,94026.0,94009.0,0.1]
[1732125979822,0.01980212,94026.0,94010.0,0.10711512]
[1732125980063,0.05148617,94025.0,94010.0,0.10711512]
[1732125980324,0.15883996,94031.0,94010.0,0.10711512]
[1732125980325,0.06475408,94024.0,94011.0,0.03512265]
[1732125980564,0.06475408,94023.0,94011.0,0.14223777]
[1732125980780,0.05148617,94022.0,94000.0,0.01]
[1732125980985,0.106349,94030.0,94006.0,0.10882652]
[1732125980986,0.05148617,94021.0,94006.0,0.10882652]
[1732125981199,0.10635,94030.0,94006.0,0.0017114]
[1732125981200,0.05148617,94020.0,94006.0,0.0017114]
[1732125981416,0.05148617,94019.0,94006.0,0.0017114]
[1732125981663,0.06475446,94018.0,94007.0,0.10711512]
[1732125981885,0.05148617,94017.0,94008.0,0.01223655]
[1732125982338,0.02073996,94031.0,94009.0,0.10711512]
[1732125982628,0.02073996,94031.0,94012.0,0.012]
[1732125982629,0.01980246,94016.0,94012.0,0.012]
[1732125982826,0.01980246,94016.0,94013.0,0.10711512]
[1732125983041,0.01980246,94016.0,94014.0,0.01471151]
[1732125983255,0.01980246,94016.0,94015.0,0.10711512]
[1732125984232,0.01980246,94016.0,93998.0,0.02065961]
[1732125984233,0.01980246,94016.0,94002.0,0.01]
[1732125984461,0.01980246,94016.0,93976.0,0.01]
[1732125984462,0.03168466,94015.0,94005.0,0.01]
[1732125984666,0.01980246,94016.0,94006.0,0.0117114]
[1732125984667,0.0449533,94014.0,94006.0,0.0117114]
[1732125984879,0.01980246,94016.0,94007.0,0.11711512]
[1732125985097,0.02059023,94031.0,94012.0,0.01]
[1732125985307,0.04494594,94030.0,94013.0,0.11711512]
[1732125985521,0.03167963,94029.0,94013.0,0.11711512]
[1732125985730,0.0012537,94039.0,94014.0,0.02403517]
[1732125985731,0.02118104,94032.0,94014.0,0.02403517]
[1732125985949,0.04494844,94031.0,94015.0,0.1335538]
[1732125986194,0.03168193,94037.0,94023.0,0.01]
[1732125986195,0.04494844,94030.0,94023.0,0.01]
[1732125986443,0.00043983,94033.0,94029.0,0.01]
[1732125986681,0.00043983,94033.0,94032.0,0.02]
[1732125986917,0.00043983,94033.0,94032.0,0.12711512]
[1732125987148,0.00043983,94033.0,94032.0,0.22711512]
[1732125987384,0.00043983,94033.0,94032.0,0.21958104]
[1732125987595,0.00043983,94033.0,94032.0,0.2574693]
[1732125988778,0.00043983,94033.0,94032.0,0.23158104]
[1732125989772,0.00043983,94033.0,94032.0,0.22158104]
[1732125989987,0.00043983,94033.0,94032.0,0.20958104]
[1732125990206,0.00043983,94033.0,94032.0,0.21958104]
[1732125990452,0.00043983,94033.0,94032.0,0.10246592]
[1732125990686,0.03209811,94033.0,94032.0,0.00246592]
[1732125990927,0.03209811,94033.0,94020.0,0.01]
[1732125991143,0.03209811,94033.0,94008.0,0.01]
[1732125991144,0.04492411,94032.0,94010.0,0.01]
[1732125991390,0.04492411,94031.0,94011.0,0.10711512]
[1732125991854,0.04492411,94030.0,94010.0,0.01411504]
[1732125992072,0.04492411,94030.0,94003.0,0.053039]
[1732125992073,0.04492411,94029.0,94003.0,0.003539]
[1732125992315,0.13997436,94028.0,94007.0,0.10711512]
[1732125992525,0.09505025,94026.0,94003.0,0.003539]
[1732125992757,0.04492411,94027.0,94003.0,0.003539]
[1732125992758,0.04492411,94025.0,94003.0,0.003539]
[1732125992992,0.0449555,94024.0,94003.0,0.003539]
[1732125993226,0.03168889,94023.0,94003.0,0.003539]
[1732125993463,0.0449555,94022.0,94003.0,0.003539]
[1732125993710,0.0449555,94021.0,94003.0,0.003539]
[1732125993947,0.03168889,94022.0,94003.0,0.003539]
[1732125993948,0.0449555,94020.0,94003.0,0.003539]
[1732125994191,0.07664439,94019.0,94003.0,0.003539]
[1732125994403,0.07664439,94018.0,94007.0,0.10711512]
[1732125994629,0.23762563,94032.0,94007.0,0.10711512]
[1732125994630,0.0449555,94017.0,94014.0,0.01]
[1732125994848,0.1901005,94034.0,94008.0,0.1]
[1732125994849,0.03168889,94026.0,94017.0,0.01]
[1732125995062,0.04498485,94025.0,94018.0,0.11982663]
[1732125995271,0.04498485,94024.0,94018.0,0.10711512]
[1732125995500,0.04498485,94023.0,94020.0,0.01]
[1732125995712,0.04498485,94023.0,94022.0,0.02]
[1732125995951,0.00043983,94033.0,94028.0,0.01]
[1732125996169,0.00043983,94033.0,94031.0,0.01]
[1732125996376,0.03171963,94032.0,94031.0,0.02]
[1732125996610,0.09516138,94032.0,94031.0,0.02]
[1732125996855,0.09516138,94032.0,94031.0,0.12711512]
[1732125997102,0.0634395,94032.0,94031.0,0.15178263]
[1732125997328,0.0634395,94032.0,94031.0,0.25178263]
[1732125997771,0.0634395,94032.0,94031.0,0.21711512]
[1732125999451,0.0634395,94032.0,94031.0,0.21471512]
[1732126001240,0.0634395,94032.0,94031.0,0.00232729]
[1732126001675,0.0634395,94032.0,94024.0,0.0076]
[1732126001676,1.72160593,94032.0,94024.0,0.0076]
[1732126001893,1.72160593,94032.0,94025.0,0.1]
[1732126002133,1.72160593,94032.0,94024.0,0.11471512]
[1732126002134,1.70834051,94032.0,94024.0,0.10711512]
[1732126002358,1.70834051,94032.0,94025.0,0.0076]
[1732126002582,0.01326554,94031.0,94025.0,0.0076]
[1732126002813,0.01326554,94030.0,94025.0,0.02007151]
[1732126003046,1.70834051,94032.0,94025.0,0.02007151]
[1732126003495,1.70834051,94032.0,94024.0,0.10711512]
[1732126003498,0.01326554,94031.0,94025.0,0.0076]
[1732126003733,0.01326554,94030.0,94025.0,0.02027151]
[1732126003946,0.01326554,94030.0,94025.0,0.02227151]
[1732126004157,0.01326554,94029.0,94025.0,0.0076]
[1732126004406,0.01326587,94028.0,94027.0,0.002]
[1732126004680,1.70834051,94032.0,94027.0,0.002]
[1732126004681,1.70834051,94032.0,94031.0,0.0176]
[1732126004907,1.70834051,94032.0,94031.0,0.12471512]
[1732126005137,1.70834051,94032.0,94031.0,0.22671512]
[1732126005361,1.64490101,94032.0,94031.0,0.22671512]
[1732126005601,1.64490101,94032.0,94031.0,0.24938663]
[1732126006566,1.63347901,94032.0,94031.0,0.24938663]
[1732126006807,1.60056657,94032.0,94031.0,0.32908663]
[1732126007245,1.60056657,94032.0,94031.0,0.37578663]
[1732126007470,1.60056657,94032.0,94031.0,0.37811526]
[1732126007956,1.60056657,94032.0,94031.0,0.42111526]
[1732126008174,1.47246657,94032.0,94031.0,0.42111526]
[1732126008420,1.25977189,94032.0,94031.0,0.39844375]
[1732126009500,1.25977189,94032.0,94031.0,0.37844375]
[1732126009709,1.25977189,94032.0,94031.0,0.38844375]
[1732126009934,1.25977189,94032.0,94031.0,0.37844375]
[1732126010381,1.25977189,94032.0,94031.0,0.35344375]
[1732126010617,1.25977189,94032.0,94031.0,0.22904375]
[1732126011096,1.25977189,94032.0,94031.0,0.22671512]
[1732126012466,1.25977189,94032.0,94031.0,0.24971512]
[1732126012951,1.25977189,94032.0,94031.0,0.25200731]
[1732126013426,1.25977189,94032.0,94031.0,0.26200731]
[1732126013646,1.25977189,94032.0,94031.0,0.30920731]
[1732126013883,1.25977189,94032.0,94031.0,0.39140731]
[1732126014622,1.25977189,94032.0,94031.0,0.37140731]
[1732126014862,1.25977189,94032.0,94031.0,0.38140731]
[1732126018251,1.25977189,94032.0,94031.0,0.38940731]
[1732126018489,1.25977189,94032.0,94031.0,0.40140731]
[1732126018981,1.12790244,94032.0,94031.0,0.40140731]
[1732126019226,1.12790244,94032.0,94031.0,0.40340731]
[1732126019471,0.69080179,94032.0,94031.0,0.29486427]
[1732126019715,0.69080179,94032.0,94031.0,0.36526427]
[1732126019965,0.56670216,94032.0,94031.0,0.36697527]
[1732126020212,0.38301962,94032.0,94031.0,0.29657527]
[1732126020951,0.37936426,94032.0,94031.0,0.29657527]
[1732126021391,0.31273208,94032.0,94031.0,0.3204757]
[1732126021645,0.27741925,94032.0,94031.0,0.3204757]
[1732126021895,0.27741925,94032.0,94031.0,0.29657527]
[1732126023374,0.24582352,94032.0,94031.0,0.29657527]
[1732126023616,0.23369097,94032.0,94031.0,0.29657527]
[1732126024775,0.09752274,94032.0,94031.0,0.29657527]
[1732126025017,0.05403296,94032.0,94031.0,0.29657527]
[1732126025273,0.05403296,94032.0,94031.0,0.31979883]
[1732126025532,0.05403296,94032.0,94031.0,0.29657527]
[1732126025991,0.05403296,94032.0,94031.0,0.29257527]
[1732126026219,0.02303296,94032.0,94031.0,0.27897527]
[1732126026430,0.02303296,94032.0,94031.0,0.29657527]
[1732126026955,0.00043983,94033.0,94032.0,0.0646]
[1732126027171,0.00043983,94033.0,94032.0,0.26771512]
[1732126027391,0.00043983,94033.0,94032.0,0.27171512]
[1732126027632,0.00043983,94033.0,94032.0,0.27395646]
[1732126027868,0.00041458,94044.0,94038.0,0.0416]
[1732126028124,0.09494909,94113.0,94078.0,0.0196]
[1732126028362,0.14242363,94116.0,94078.0,0.22671512]
[1732126028363,0.01325606,94111.0,94078.0,0.22671512]
[1732126028598,0.0316425,94117.0,94078.0,0.22671512]
[1732126028599,0.12659159,94117.0,94078.0,0.22671512]
[1732126028835,0.0316425,94117.0,94078.0,0.22894814]
[1732126029074,0.02103218,94105.0,94078.0,0.22894814]
[1732126029785,0.0316425,94118.0,94078.0,0.22894814]
[1732126030042,0.0002,94119.0,94078.0,0.28187127]
[1732126030265,0.0002,94119.0,94078.0,0.26194814]
[1732126032164,0.1283555,94079.0,94078.0,0.10934814]
[1732126032388,0.1283555,94079.0,94070.0,0.01]
[1732126032612,0.1283555,94079.0,94076.0,0.10711512]
[1732126033047,0.1283555,94079.0,94077.0,0.00221564]
[1732126033272,0.1283555,94079.0,94077.0,0.10933076]
[1732126034004,0.1283555,94079.0,94077.0,0.00221564]
[1732126034317,0.1308,94077.0,94064.0,0.0076]
[1732126034490,0.0489,94076.0,94066.0,0.002]
[1732126034744,0.01325869,94075.0,94067.0,0.10711512]
[1732126034984,0.0489,94076.0,94067.0,0.10924236]
[1732126035196,0.03163626,94072.0,94069.0,0.002]
[1732126035444,0.03163626,94072.0,94070.0,0.10711512]
[1732126035663,0.17049618,94071.0,94070.0,0.10923782]
[1732126035895,0.13885992,94071.0,94070.0,0.10923782]
[1732126036331,0.17049618,94071.0,94070.0,0.10923782]
[1732126036567,0.13885992,94071.0,94070.0,0.11123782]
[1732126036812,0.17051189,94071.0,94070.0,0.10923782]
[1732126037054,0.17051189,94071.0,94070.0,0.0021227]
[1732126037290,0.13885992,94071.0,94059.0,0.002]
[1732126037520,0.03165806,94068.0,94061.0,0.1]
[1732126037743,0.04491798,94067.0,94062.0,0.10711512]
[1732126037987,0.03165934,94066.0,94062.0,0.10711512]
[1732126038232,0.03165985,94064.0,94062.0,0.10711512]
[1732126038454,0.03165985,94064.0,94063.0,0.00193813]